fUST/lending_fUST_20250520
["ID","MTS","AMOUNT","RATE_DAILY","PERIOD"]
[361718495,1747723840960,-450.0,0.00016438,2]
[361718496,1747723840969,-151.0,0.00016438,2]
[361718497,1747723840980,-151.0,0.00016438,2]
[361718498,1747723840990,-151.0,0.00016438,2]
[361718499,1747723841001,-430.0,0.00016438,2]
[361718500,1747723841014,-430.0,0.00016438,2]
[361718501,1747723841024,-284.853538,0.00016438,2]
[361718502,1747723841034,-430.0,0.00016438,2]
[361718503,1747723841044,-193.29054747,0.00016438,2]
[361718504,1747723841053,-449.56,0.00016438,2]
[361718505,1747723841063,-430.0,0.00016438,2]
[361718506,1747723841072,-370.0,0.00016438,2]
[361718507,1747723841082,-858.66,0.00016438,2]
[361718508,1747723841092,-430.0,0.00016438,2]
[361718509,1747723841102,-370.0,0.00016438,2]
[361718510,1747723841111,-1356.57,0.00016438,2]
[361718511,1747723841121,-3513.69,0.00016438,2]
[361718512,1747723841130,-430.0,0.00016438,2]
[361718513,1747723841140,-400.0,0.00016438,2]
[361718514,1747723841150,-430.0,0.00016438,2]
[361718515,1747723841159,-1048.66,0.00016438,2]
[361718516,1747723841170,-430.0,0.00016438,2]
[361718517,1747723841180,-430.0,0.00016438,2]
[361718518,1747723841190,-430.0,0.00016438,2]
[361718519,1747723841199,-1040.76,0.00016438,2]
[361718520,1747723841208,-5324.25,0.00016438,2]
[361718521,1747723841217,-435.84,0.00016438,2]
[361718522,1747723841225,-400.0,0.00016438,2]
[361718523,1747723841234,-400.0,0.00016438,2]
[361718524,1747723841243,-430.0,0.00016438,2]
[361718525,1747723841252,-1539.83,0.00016438,2]
[361718526,1747723841261,-430.0,0.00016438,2]
[361718527,1747723841270,-430.0,0.00016438,2]
[361718528,1747723841278,-370.0,0.00016438,2]
[361718529,1747723841287,-651.71,0.00016438,2]
[361718530,1747723841296,-613.05,0.00016438,2]
[361718531,1747723841304,-930.14,0.00016438,2]
[361718532,1747723841313,-201.180991,0.00016438,2]
[361718533,1747723841322,-430.0,0.00016438,2]
[361718534,1747723841331,-430.0,0.00016438,2]
[361718535,1747723841340,-598.92,0.00016438,2]
[361718536,1747723841349,-430.0,0.00016438,2]
[361718537,1747723841358,-2078.85,0.00016438,2]
[361718538,1747723841366,-190.92,0.00016438,2]
[361718539,1747723841376,-504.48,0.00016438,2]
[361718540,1747723841385,-1167.64,0.00016438,2]
[361718541,1747723841394,-430.0,0.00016438,2]
[361718542,1747723841403,-430.0,0.00016438,2]
[361718543,1747723841411,-430.0,0.00016438,2]
[361718544,1747723841419,-430.0,0.00016438,2]
[361718545,1747723841426,-430.0,0.00016438,2]
[361718546,1747723841433,-450.0,0.00016438,2]
[361718547,1747723841440,-1689.44,0.00016438,2]
[361718548,1747723841448,-494.8,0.00016438,2]
[361718549,1747723841455,-430.0,0.00016438,2]
[361718550,1747723841463,-430.0,0.00016438,2]
[361718551,1747723841471,-430.0,0.00016438,2]
[361718552,1747723841479,-2287.87,0.00016438,2]
[361718553,1747723841487,-430.0,0.00016438,2]
[361718554,1747723841494,-514.86,0.00016438,2]
[361718555,1747723841501,-547.54,0.00016438,2]
[361718556,1747723841509,-463.32,0.00016438,2]
[361718557,1747723841516,-1016.43,0.00016438,2]
[361718558,1747723841523,-764.69,0.00016438,2]
[361718559,1747723841530,-430.0,0.00016438,2]
[361718560,1747723841538,-430.0,0.00016438,2]
[361718561,1747723841547,-830.36,0.00016438,2]
[361718562,1747723841554,-1078.82,0.00016438,2]
[361718563,1747723841563,-430.0,0.00016438,2]
[361718564,1747723841572,-811.22,0.00016438,2]
[361718565,1747723841581,-430.0,0.00016438,2]
[361718566,1747723841589,-430.0,0.00016438,2]
[361718567,1747723841597,-1368.03,0.00016438,2]
[361718568,1747723841606,-1103.51,0.00016438,2]
[361718569,1747723841615,-247.23919966,0.00016438,2]
[361718570,1747723841624,-1504.99,0.00016438,2]
[361718571,1747723841634,-3044.86,0.00016438,2]
[361718572,1747723841644,-2065.01,0.00016438,2]
[361718573,1747723841654,-1487.12,0.00016438,2]
[361718574,1747723841665,-1014.74,0.00016438,2]
[361718575,1747723841674,-2175.3,0.00016438,2]
[361718576,1747723841684,-420.0,0.00016438,2]
[361718577,1747723841695,-526.35,0.00016438,2]
[361718578,1747723841705,-7842.52,0.00016438,2]
[361718579,1747723841715,-1424.73,0.00016438,2]
[361718580,1747723841726,-913.17,0.00016438,2]
[361718581,1747723841736,-166.63782429,0.00016438,2]
[361718582,1747723841747,-2097.63,0.00016438,2]
[361718583,1747723841757,-1558.57,0.00016438,2]
[361718584,1747723841767,-420.0,0.00016438,2]
[361718585,1747723841777,-864.07,0.00016438,2]
[361718586,1747723841787,-151.0,0.00016438,2]
[361718587,1747723841797,-950.4,0.00016438,2]
[361718588,1747723841807,-154.134421,0.00016438,2]
[361718589,1747723841816,-384.26522277,0.00016438,2]
[361718590,1747723841826,-151.0,0.00016438,2]
[361718591,1747723841836,-370.0,0.00016438,2]
[361718592,1747723841846,-151.0,0.00016438,2]
[361718593,1747723841857,-151.0,0.00016438,2]
[361718594,1747723841868,-151.0,0.00016438,2]
[361718595,1747723841878,-430.0,0.00016438,2]
[361718596,1747723841887,-370.0,0.00016438,2]
[361718597,1747723841897,-151.0,0.00016438,2]
[361718598,1747723841906,-297.374074,0.00016438,2]
[361718599,1747723841916,-370.0,0.00016438,2]
[361718600,1747723841925,-430.0,0.00016438,2]
[361718601,1747723841940,-7721.78,0.00016438,2]
[361718602,1747723841948,-430.0,0.00016438,2]
[361718603,1747723841957,-370.0,0.00016438,2]
[361718604,1747723841966,-530.31,0.00016438,2]
[361718605,1747723841976,-430.0,0.00016438,2]
[361718606,1747723841985,-456.32,0.00016438,2]
[361718607,1747723841995,-3791.07,0.00016438,2]
[361718608,1747723842005,-407.67409118,0.00016438,2]
[361718609,1747723842014,-467.79,0.00016438,2]
[361718610,1747723842024,-430.0,0.00016438,2]
[361718611,1747723842035,-929.62,0.00016438,2]
[361718612,1747723842045,-1307.16,0.00016438,2]
[361718613,1747723842054,-430.0,0.00016438,2]
[361718614,1747723842064,-430.0,0.00016438,2]
[361718615,1747723842074,-1518.72,0.00016438,2]
[361718616,1747723842084,-1758.16,0.00016438,2]
[361718617,1747723842094,-1079.57,0.00016438,2]
[361718618,1747723842104,-1423.99,0.00016438,2]
[361718619,1747723842114,-420.0,0.00016438,2]
[361718620,1747723842124,-430.0,0.00016438,2]
[361718621,1747723842133,-430.0,0.00016438,2]
[361718622,1747723842142,-151.0,0.00016438,2]
[361718623,1747723842152,-430.0,0.00016438,2]
[361718624,1747723842162,-151.0,0.00016438,2]
[361718625,1747723842172,-151.0,0.00016438,2]
[361718626,1747723842181,-430.0,0.00016438,2]
[361718627,1747723842190,-430.0,0.00016438,2]
[361718628,1747723842200,-538.89,0.00016438,2]
[361718629,1747723842210,-611.82,0.00016438,2]
[361718630,1747723842219,-430.0,0.00016438,2]
[361718632,1747723842229,-430.0,0.00016438,2]
[361718635,1747723842238,-264.63030653,0.00016438,2]
[361718637,1747723842247,-1687.09,0.00016438,2]
[361718639,1747723842257,-788.06,0.00016438,2]
[361718641,1747723842266,-350.0,0.00016438,2]
[361718642,1747723842275,-430.0,0.00016438,2]
[361718644,1747723842285,-2323.68,0.00016438,2]
[361718646,1747723842294,-450.0,0.00016438,2]
[361718647,1747723842304,-420.40228794,0.00016438,2]
[361718648,1747723842313,-430.0,0.00016438,2]
[361718649,1747723842323,-2853.34,0.00016438,2]
[361718650,1747723842332,-3454.83,0.00016438,2]
[361718651,1747723842341,-5847.34,0.00016438,2]
[361718652,1747723842351,-430.0,0.00016438,2]
[361718653,1747723842360,-450.0,0.00016438,2]
[361718654,1747723842369,-430.0,0.00016438,2]
[361718655,1747723842379,-409.97627564,0.00016438,2]
[361718656,1747723842389,-450.0,0.00016438,2]
[361718657,1747723842398,-216.11,0.00016438,2]
[361718658,1747723842408,-300.0,0.00016438,2]
[361718659,1747723842418,-430.0,0.00016438,2]
[361718660,1747723842427,-450.0,0.00016438,2]
[361718661,1747723842437,-430.0,0.00016438,2]
[361718662,1747723842446,-189.11782053,0.00016475,2]
[361718663,1747723842469,-441.8568916,0.00016475,2]
[361718664,1747723842479,-301.17667561,0.00016486,2]
[361718665,1747723842488,-151.0,0.00016487,2]
[361718666,1747723842497,-2695.38189613,0.00016555,2]
[361718667,1747723842507,-630.97471213,0.00016612,2]
[361718668,1747723842516,-160.0,0.00016633,2]
[361718669,1747723842526,-160.0,0.00016633,2]
[361718670,1747723842535,-160.0,0.00016633,2]
[361718671,1747723842545,-160.0,0.00016633,2]
[361718672,1747723842554,-998.82236359,0.00016633,2]
[361718673,1747723842563,-212.38718278,0.00016633,2]
[361718674,1747723842572,-12640.66806714,0.00016633,2]
[361718675,1747723842582,-160.0,0.00016633,2]
[361718676,1747723842591,-160.0,0.00016633,2]
[361718677,1747723842600,-160.0,0.00016633,2]
[361718678,1747723842610,-422.65292303,0.00016633,2]
[361718679,1747723842619,-314.48519801,0.00016633,2]
[361718680,1747723842628,-160.0,0.00016633,2]
[361718681,1747723842637,-160.0,0.00016633,2]
[361718683,1747723842646,-151.0,0.00016639,2]
[361718685,1747723842655,-545.532643,0.00016639,2]
[361718686,1747723842665,-545.532643,0.00016639,2]
[361718687,1747723842674,-151.0,0.00016639,2]
[361718688,1747723842683,-547.0,0.00016644,2]
[361718689,1747723842692,-2235.0,0.00016644,2]
[361718690,1747723842701,-712.779,0.00016644,2]
[361718691,1747723842711,-153.7299757,0.00016658,2]
[361718692,1747723842720,-153.0,0.00016658,2]
[361718693,1747723842729,-153.0,0.00016658,2]
[361718694,1747723842739,-250.0,0.00016674,2]
[361718695,1747723842749,-500.0,0.00016684,2]
[361718696,1747723842758,-500.0,0.00016684,2]
[361718697,1747723842768,-500.0,0.00016684,2]
[361718698,1747723842777,-500.0,0.00016684,2]
[361718699,1747723842786,-500.0,0.00016684,2]
[361718700,1747723842795,-500.0,0.00016684,2]
[361718701,1747723842806,-500.0,0.00016684,2]
[361718702,1747723842815,-500.0,0.00016684,2]
[361718703,1747723842824,-500.0,0.00016684,2]
[361718704,1747723842833,-500.0,0.00016684,2]
[361718705,1747723842843,-500.0,0.00016684,2]
[361718706,1747723842852,-500.0,0.00016684,2]
[361718707,1747723842861,-500.0,0.00016684,2]
[361718708,1747723842871,-287.3560069,0.00016684,2]
[361718709,1747723842881,-235.139,0.00016689,2]
[361718710,1747723842890,-250.0,0.00016689,2]
[361718711,1747723842899,-151.569,0.00016689,2]
[361718712,1747723842909,-205.233,0.00016689,2]
[361718713,1747723842918,-250.0,0.00016689,2]
[361718714,1747723842928,-232.999,0.00016689,2]
[361718715,1747723842942,-160.448,0.00016689,2]
[361718716,1747723842951,-257.308,0.00016689,2]
[361718717,1747723842961,-242.0,0.00016689,2]
[361718718,1747723842971,-151.0,0.00016699,2]
[361718719,1747723842980,-151.0,0.00016699,2]
[361718720,1747723842990,-302.869616,0.00016699,2]
[361718721,1747723842999,-302.869616,0.00016699,2]
[361718722,1747723843010,-3001.23,0.00016711,2]
[361718723,1747723843020,-151.0,0.00016711,2]
[361718724,1747723843030,-151.0,0.00016711,2]
[361718725,1747723843040,-151.0,0.00016711,2]
[361718726,1747723843049,-151.0,0.00016712,2]
[361718727,1747723843058,-171.945768,0.00016712,2]
[361718728,1747723843068,-545.532643,0.00016712,2]
[361718729,1747723843077,-545.532643,0.00016712,2]
[361718730,1747723843087,-545.532643,0.00016712,2]
[361718731,1747723843097,-545.532643,0.00016712,2]
[361718732,1747723843107,-545.532643,0.00016712,2]
[361718733,1747723843116,-545.532643,0.00016712,2]
[361718734,1747723843126,-545.532643,0.00016712,2]
[361718735,1747723843136,-545.532643,0.00016712,2]
[361718736,1747723843147,-151.0,0.00016712,2]
[361718737,1747723843156,-151.0,0.00016712,2]
[361718738,1747723843167,-151.0,0.00016712,2]
[361718739,1747723843177,-151.0,0.00016712,2]
[361718740,1747723843187,-151.0,0.00016712,2]
[361718741,1747723843197,-153.101189,0.00016712,2]
[361718742,1747723843206,-450.0,0.00016712,2]
[361718743,1747723843216,-430.0,0.00016712,2]
[361718744,1747723843226,-430.0,0.00016712,2]
[361718745,1747723843235,-430.0,0.00016712,2]
[361718746,1747723843244,-470.0,0.00016712,2]
[361718747,1747723843254,-162.238917,0.00016712,2]
[361718748,1747723843263,-162.238917,0.00016712,2]
[361718749,1747723843272,-162.238917,0.00016712,2]
[361718750,1747723843283,-162.238917,0.00016712,2]
[361718751,1747723843294,-162.238917,0.00016712,2]
[361718752,1747723843306,-162.238917,0.00016712,2]
[361718753,1747723843317,-162.238917,0.00016712,2]
[361718754,1747723843327,-162.238917,0.00016712,2]
[361718755,1747723843337,-430.0,0.00016712,2]
[361718756,1747723843347,-331.26412152,0.00016712,2]
[361718757,1747723843357,-469.77316756,0.00016712,2]
[361718758,1747723843366,-470.0,0.00016712,2]
[361718759,1747723843375,-671.11,0.00016712,2]
[361718760,1747723843385,-552.69,0.00016712,2]
[361718761,1747723843394,-522.33,0.00016712,2]
[361718762,1747723843403,-470.0,0.00016712,2]
[361718763,1747723843412,-420.0,0.00016712,2]
[361718764,1747723843422,-478.55517041,0.00016712,2]
[361718765,1747723843431,-430.0,0.00016712,2]
[361718766,1747723843581,-370.0,0.00016712,2]
[361718767,1747723843592,-430.0,0.00016712,2]
[361718768,1747723843602,-475.62771099,0.00016712,2]
[361718769,1747723843612,-420.0,0.00016712,2]
[361718770,1747723843622,-778.55,0.00016712,2]
[361718771,1747723843631,-560.31747311,0.00016712,2]
[361718772,1747723843641,-442.00420122,0.00016712,2]
[361718773,1747723843651,-420.0,0.00016712,2]
[361718774,1747723843660,-470.0,0.00016712,2]
[361718775,1747723843670,-420.0,0.00016712,2]
[361718776,1747723843679,-370.0,0.00016712,2]
[361718777,1747723843689,-320.0,0.00016712,2]
[361718778,1747723843701,-345.37073171,0.00016712,2]
[361718779,1747723843713,-420.0,0.00016712,2]
[361718780,1747723843726,-430.0,0.00016712,2]
[361718781,1747723843736,-430.0,0.00016712,2]
[361718782,1747723843750,-430.0,0.00016712,2]
[361718783,1747723843769,-453.98,0.00016712,2]
[361718784,1747723843779,-523.69,0.00016712,2]
[361718785,1747723843790,-430.0,0.00016712,2]
[361718786,1747723843801,-686.53,0.00016712,2]
[361718787,1747723843811,-430.0,0.00016712,2]
[361718788,1747723843821,-630.62,0.00016712,2]
[361718789,1747723843831,-251.62774334,0.00016712,2]
[361718790,1747723843843,-484.84,0.00016712,2]
[361718791,1747723843854,-430.0,0.00016712,2]
[361718792,1747723843866,-430.0,0.00016712,2]
[361718793,1747723843876,-683.64,0.00016712,2]
[361718794,1747723843885,-270.15050915,0.00016712,2]
[361718795,1747723843895,-430.0,0.00016712,2]
[361718796,1747723843905,-254.01072474,0.00016712,2]
[361718797,1747723843915,-430.0,0.00016712,2]
[361718798,1747723843925,-465.83,0.00016712,2]
[361718799,1747723843944,-370.0,0.00016712,2]
[361718800,1747723843954,-554.51044857,0.00016712,2]
[361718801,1747723843964,-420.0,0.00016712,2]
[361718802,1747723843974,-1355.93,0.00016712,2]
[361718803,1747723843986,-679.09,0.00016712,2]
[361718804,1747723843996,-1257.94,0.00016712,2]
[361718805,1747723844007,-370.0,0.00016712,2]
[361718806,1747723844017,-420.0,0.00016712,2]
[361718807,1747723844026,-430.0,0.00016712,2]
[361718808,1747723844036,-430.0,0.00016712,2]
[361718809,1747723844046,-430.0,0.00016712,2]
[361718810,1747723844056,-430.0,0.00016712,2]
[361718811,1747723844066,-430.0,0.00016712,2]
[361718812,1747723844076,-430.0,0.00016712,2]
[361718813,1747723844086,-430.0,0.00016712,2]
[361718814,1747723844095,-680.31,0.00016712,2]
[361718815,1747723844105,-1008.71,0.00016712,2]
[361718816,1747723844115,-275.77616446,0.00016712,2]
[361718817,1747723844125,-619.76,0.00016712,2]
[361718818,1747723844135,-438.81,0.00016712,2]
[361718819,1747723844145,-612.09,0.00016712,2]
[361718820,1747723844155,-558.838351,0.00016712,2]
[361718821,1747723844165,-445.3,0.00016712,2]
[361718822,1747723844174,-370.0,0.00016712,2]
[361718823,1747723844185,-151.0,0.00016712,2]
[361718824,1747723844195,-151.0,0.00016712,2]
[361718825,1747723844205,-151.0,0.00016712,2]
[361718826,1747723844215,-430.0,0.00016712,2]
[361718827,1747723844225,-151.0,0.00016712,2]
[361718828,1747723844235,-576.92,0.00016712,2]
[361718829,1747723844244,-514.34,0.00016712,2]
[361718830,1747723844254,-151.0,0.00016712,2]
[361718831,1747723844263,-151.0,0.00016712,2]
[361718832,1747723844273,-151.0,0.00016712,2]
[361718833,1747723844283,-151.0,0.00016712,2]
[361718834,1747723844292,-804.3,0.00016712,2]
[361718835,1747723844302,-506.14,0.00016712,2]
[361718836,1747723844311,-420.0,0.00016712,2]
[361718837,1747723844321,-430.0,0.00016712,2]
[361718838,1747723844330,-430.0,0.00016712,2]
[361718839,1747723844340,-793.61,0.00016712,2]
[361718840,1747723844350,-430.0,0.00016712,2]
[361718841,1747723844359,-410.0,0.00016712,2]
[361718842,1747723844370,-430.0,0.00016712,2]
[361718843,1747723844380,-691.98,0.00016712,2]
[361718844,1747723844390,-376.96991516,0.00016712,2]
[361718845,1747723844400,-430.0,0.00016712,2]
[361718846,1747723844410,-430.0,0.00016712,2]
[361718847,1747723844419,-445.15,0.00016712,2]
[361718848,1747723844429,-430.0,0.00016712,2]
[361718849,1747723844438,-430.0,0.00016712,2]
[361718850,1747723844448,-482.21,0.00016712,2]
[361718851,1747723844457,-430.0,0.00016712,2]
[361718852,1747723844467,-174.55,0.00016712,2]
[361718853,1747723844477,-465.09,0.00016712,2]
[361718854,1747723844486,-430.0,0.00016712,2]
[361718855,1747723844496,-430.0,0.00016712,2]
[361718856,1747723844506,-430.0,0.00016712,2]
[361718857,1747723844517,-430.0,0.00016712,2]
[361718858,1747723844526,-430.0,0.00016712,2]
[361718859,1747723844536,-494.59090375,0.00016712,2]
[361718860,1747723844546,-430.0,0.00016712,2]
[361718861,1747723844556,-430.0,0.00016712,2]
[361718862,1747723844566,-430.0,0.00016712,2]
[361718863,1747723844576,-430.0,0.00016712,2]
[361718864,1747723844585,-370.0,0.00016712,2]
[361718865,1747723844595,-1168.87,0.00016712,2]
[361718866,1747723844606,-302.869616,0.00016712,2]
[361718867,1747723844616,-302.869616,0.00016712,2]
[361718868,1747723844627,-302.869616,0.00016712,2]
[361718869,1747723844637,-302.869616,0.00016712,2]
[361718870,1747723844646,-450.19,0.00016712,2]
[361718871,1747723844656,-302.869616,0.00016712,2]
[361718872,1747723844666,-302.869616,0.00016712,2]
[361718873,1747723844676,-302.869616,0.00016712,2]
[361718874,1747723844685,-302.869616,0.00016712,2]
[361718875,1747723844695,-544.4,0.00016712,2]
[361718876,1747723844705,-430.0,0.00016712,2]
[361718877,1747723844714,-430.0,0.00016712,2]
[361718878,1747723844724,-430.0,0.00016712,2]
[361718879,1747723844735,-430.0,0.00016712,2]
[361718880,1747723844746,-704.26,0.00016712,2]
[361718881,1747723844755,-521.49,0.00016712,2]
[361718882,1747723844765,-1063.65,0.00016712,2]
[361718883,1747723844775,-430.0,0.00016712,2]
[361718884,1747723844784,-1628.78,0.00016712,2]
[361718885,1747723844796,-430.0,0.00016712,2]
[361718886,1747723844806,-430.0,0.00016712,2]
[361718887,1747723844816,-151.0,0.00016712,2]
[361718888,1747723844826,-151.0,0.00016712,2]
[361718889,1747723844837,-151.0,0.00016712,2]
[361718890,1747723844847,-430.0,0.00016712,2]
[361718891,1747723844858,-430.0,0.00016712,2]
[361718892,1747723844868,-449.56,0.00016712,2]
[361718893,1747723844879,-430.0,0.00016712,2]
[361718894,1747723844889,-858.66,0.00016712,2]
[361718895,1747723844899,-430.0,0.00016712,2]
[361718896,1747723844909,-1356.57,0.00016712,2]
[361718897,1747723844920,-3513.69,0.00016712,2]
[361718898,1747723844930,-430.0,0.00016712,2]
[361718899,1747723844942,-430.0,0.00016712,2]
[361718900,1747723844951,-1048.66,0.00016712,2]
[361718901,1747723844962,-430.0,0.00016712,2]
[361718902,1747723844972,-430.0,0.00016712,2]
[361718903,1747723844983,-1040.76,0.00016712,2]
[361718904,1747723844992,-490.0,0.00016712,2]
[361718905,1747723845003,-5324.25,0.00016712,2]
[361718906,1747723845014,-435.84,0.00016712,2]
[361718907,1747723845025,-430.0,0.00016712,2]
[361718908,1747723845035,-1539.83,0.00016712,2]
[361718909,1747723845044,-430.0,0.00016712,2]
[361718910,1747723845054,-390.52284534,0.00016712,2]
[361718911,1747723845064,-651.71,0.00016712,2]
[361718912,1747723845075,-613.05,0.00016712,2]
[361718913,1747723845086,-930.14,0.00016712,2]
[361718914,1747723845096,-430.0,0.00016712,2]
[361718915,1747723845106,-430.0,0.00016712,2]
[361718916,1747723845116,-598.92,0.00016712,2]
[361718917,1747723845128,-430.0,0.00016712,2]
[361718918,1747723845140,-2078.85,0.00016712,2]
[361718920,1747723845150,-504.48,0.00016712,2]
[361718921,1747723845159,-1167.64,0.00016712,2]
[361718922,1747723845169,-430.0,0.00016712,2]
[361718923,1747723845178,-430.0,0.00016712,2]
[361718925,1747723845188,-430.0,0.00016712,2]
[361718927,1747723845197,-430.0,0.00016712,2]
[361718928,1747723845207,-1689.44,0.00016712,2]
[361718930,1747723845216,-430.0,0.00016712,2]
[361718931,1747723845226,-430.0,0.00016712,2]
[361718932,1747723845236,-205.91499536,0.00016712,2]
[361718933,1747723845245,-2287.87,0.00016712,2]
[361718934,1747723845255,-430.0,0.00016712,2]
[361718935,1747723845264,-514.86,0.00016712,2]
[361718936,1747723845274,-547.54,0.00016712,2]
[361718937,1747723845283,-463.32,0.00016712,2]
[361718938,1747723845292,-1016.43,0.00016712,2]
[361718939,1747723845301,-764.69,0.00016712,2]
[361718940,1747723845311,-430.0,0.00016712,2]
[361718941,1747723845321,-430.0,0.00016712,2]
[361718942,1747723845331,-830.36,0.00016712,2]
[361718943,1747723845340,-1078.82,0.00016712,2]
[361718944,1747723845349,-430.0,0.00016712,2]
[361718945,1747723845359,-811.22,0.00016712,2]
[361718946,1747723845368,-430.0,0.00016712,2]
[361718947,1747723845378,-430.0,0.00016712,2]
[361718948,1747723845387,-1368.03,0.00016712,2]
[361718949,1747723845398,-1103.51,0.00016712,2]
[361718950,1747723845407,-1504.99,0.00016712,2]
[361718951,1747723845417,-3044.86,0.00016712,2]
[361718952,1747723845426,-2065.01,0.00016712,2]
[361718953,1747723845436,-1487.12,0.00016712,2]
[361718954,1747723845445,-1014.74,0.00016712,2]
[361718955,1747723845454,-2175.3,0.00016712,2]
[361718956,1747723845464,-526.35,0.00016712,2]
[361718957,1747723845473,-7842.52,0.00016712,2]
[361718958,1747723845483,-1424.73,0.00016712,2]
[361718959,1747723845493,-913.17,0.00016712,2]
[361718960,1747723845502,-2097.63,0.00016712,2]
[361718961,1747723845512,-1558.57,0.00016712,2]
[361718962,1747723845521,-864.07,0.00016712,2]
[361718963,1747723845531,-950.4,0.00016712,2]
[361718964,1747723845540,-151.0,0.00016712,2]
[361718965,1747723845550,-151.0,0.00016712,2]
[361718966,1747723845559,-151.0,0.00016712,2]
[361718967,1747723845568,-430.0,0.00016712,2]
[361718968,1747723845577,-430.0,0.00016712,2]
[361718969,1747723845587,-7721.78,0.00016712,2]
[361718970,1747723845596,-521.16,0.00016712,2]
[361718972,1747723845606,-530.31,0.00016712,2]
[361718973,1747723845615,-430.0,0.00016712,2]
[361718974,1747723845627,-456.32,0.00016712,2]
[361718975,1747723845637,-3791.07,0.00016712,2]
[361718976,1747723845646,-430.0,0.00016712,2]
[361718977,1747723845655,-929.62,0.00016712,2]
[361718978,1747723845665,-1307.16,0.00016712,2]
[361718979,1747723845674,-430.0,0.00016712,2]
[361718980,1747723845683,-318.49411158,0.00016712,2]
[361718981,1747723845693,-1518.72,0.00016712,2]
[361718982,1747723845703,-1758.16,0.00016712,2]
[361718983,1747723845712,-1079.57,0.00016712,2]
[361718984,1747723845722,-1423.99,0.00016712,2]
[361718986,1747723845732,-444.52479271,0.00016712,2]
[361718987,1747723845742,-430.0,0.00016712,2]
[361718988,1747723845751,-430.0,0.00016712,2]
[361718989,1747723845760,-430.0,0.00016712,2]
[361718990,1747723845770,-566.49,0.00016712,2]
[361718991,1747723845780,-538.89,0.00016712,2]
[361718992,1747723845790,-611.82,0.00016712,2]
[361718993,1747723845800,-430.0,0.00016712,2]
[361718994,1747723845810,-568.29067199,0.00016712,2]
[361718995,1747723845820,-1687.09,0.00016712,2]
[361718996,1747723845829,-788.06,0.00016712,2]
[361718997,1747723845839,-430.0,0.00016712,2]
[361718998,1747723845849,-2323.68,0.00016712,2]
[361719000,1747723845859,-470.0,0.00016712,2]
[361719001,1747723845867,-2853.34,0.00016712,2]
[361719002,1747723845878,-3454.83,0.00016712,2]
[361719003,1747723845887,-430.0,0.00016712,2]
[361719004,1747723845897,-5847.34,0.00016712,2]
[361719005,1747723845907,-430.0,0.00016712,2]
[361719006,1747723845916,-430.0,0.00016712,2]
[361719007,1747723845925,-177.330422,0.00016749,2]
[361719008,1747723845939,-151.0,0.00016749,2]
[361719009,1747723845949,-630.97471213,0.00016749,2]
[361719010,1747723845958,-153.968453,0.00016767,2]
[361719011,1747723845968,-153.0,0.00016767,2]